fUSD/lending_fUSD_20240714
["ID","MTS","AMOUNT","RATE_DAILY","PERIOD"]
[332063106,1720947053233,-574.63725895,0.00013753,2]
[332063108,1720947053242,-500.0,0.00013753,2]
[332063110,1720947053251,-914.03,0.00013753,2]
[332063112,1720947053261,-151.0,0.00013753,2]
[332063114,1720947053270,-151.0,0.00013753,2]
[332063116,1720947053279,-1043.98,0.00013753,2]
[332063118,1720947053289,-1315.08,0.00013753,2]
[332063120,1720947053298,-166.679905,0.00013753,2]
[332063122,1720947053307,-571.39,0.00013753,2]
[332063124,1720947053317,-500.0,0.00013753,2]
[332063126,1720947053326,-500.0,0.00013753,2]
[332063128,1720947053336,-833.58,0.00013753,2]
[332063130,1720947053345,-816.75,0.00013753,2]
[332063132,1720947053354,-500.0,0.00013753,2]
[332063134,1720947053363,-1418.44,0.00013753,2]
[332063136,1720947053372,-708.02,0.00013753,2]
[332063138,1720947053382,-1584.7,0.00013753,2]
[332063140,1720947053391,-500.0,0.00013753,2]
[332063142,1720947053401,-500.0,0.00013753,2]
[332063144,1720947053410,-500.0,0.00013753,2]
[332063146,1720947053419,-500.0,0.00013753,2]
[332063148,1720947053429,-500.0,0.00013753,2]
[332063150,1720947053438,-506.29890862,0.00013753,2]
[332063152,1720947053448,-763.32,0.00013753,2]
[332063153,1720947053457,-974.62,0.00013753,2]
[332063156,1720947053469,-500.0,0.00013753,2]
[332063157,1720947053483,-500.0,0.00013753,2]
[332063159,1720947053493,-666.0,0.00013753,2]
[332063161,1720947053502,-635.69,0.00013753,2]
[332063163,1720947053512,-500.0,0.00013753,2]
[332063166,1720947053523,-664.93,0.00013753,2]
[332063168,1720947053532,-935.55,0.00013753,2]
[332063170,1720947053543,-500.0,0.00013753,2]
[332063172,1720947053556,-500.0,0.00013753,2]
[332063174,1720947053567,-435.90185956,0.00013753,2]
[332063176,1720947053576,-1460.2,0.00013753,2]
[332063178,1720947053586,-500.0,0.00013753,2]
[332063180,1720947053595,-500.0,0.00013753,2]
[332063182,1720947053605,-500.0,0.00013753,2]
[332063184,1720947053615,-1032.43,0.00013753,2]
[332063186,1720947053624,-1904.64,0.00013753,2]
[332063188,1720947053634,-500.0,0.00013753,2]
[332063190,1720947053644,-171.03124,0.00013753,2]
[332063191,1720947053653,-500.0,0.00013753,2]
[332063194,1720947053662,-151.0,0.00013753,2]
[332063196,1720947053671,-711.57,0.00013753,2]
[332063198,1720947053680,-500.0,0.00013753,2]
[332063200,1720947053690,-151.0,0.00013753,2]
[332063201,1720947053700,-500.0,0.00013753,2]
[332063203,1720947053709,-500.0,0.00013753,2]
[332063206,1720947053719,-639.19,0.00013753,2]
[332063208,1720947053728,-500.0,0.00013753,2]
[332063209,1720947053737,-500.0,0.00013753,2]
[332063211,1720947053750,-1462.85,0.00013753,2]
[332063213,1720947053760,-465.44743244,0.00013753,2]
[332063215,1720947053769,-500.0,0.00013753,2]
[332063217,1720947053779,-500.0,0.00013753,2]
[332063219,1720947053788,-1019.09,0.00013753,2]
[332063221,1720947053798,-500.0,0.00013753,2]
[332063223,1720947053807,-1954.78,0.00013753,2]
[332063225,1720947053817,-1900.61,0.00013753,2]
[332063227,1720947053826,-2304.30449,0.00013753,2]
[332063229,1720947053835,-237.56085731,0.00013753,2]
[332063231,1720947053845,-1133.11,0.00013753,2]
[332063233,1720947053854,-151.0,0.00013753,2]
[332063235,1720947053863,-500.0,0.00013753,2]
[332063237,1720947053872,-783.41,0.00013753,2]
[332063239,1720947053881,-500.0,0.00013753,2]
[332063241,1720947053890,-500.0,0.00013753,2]
[332063243,1720947053899,-1360.58,0.00013753,2]
[332063245,1720947053909,-532.34,0.00013753,2]
[332063247,1720947053918,-200.463705,0.00013753,2]
[332063249,1720947053929,-500.0,0.00013753,2]
[332063251,1720947053939,-1516.35,0.00013753,2]
[332063253,1720947053948,-500.0,0.00013753,2]
[332063255,1720947053958,-565.98,0.00013753,2]
[332063257,1720947053967,-200.463705,0.00013753,2]
[332063259,1720947053976,-973.22,0.00013753,2]
[332063261,1720947053985,-923.97,0.00013753,2]
[332063263,1720947053995,-500.0,0.00013753,2]
[332063265,1720947054004,-500.0,0.00013753,2]
[332063267,1720947054014,-513.15,0.00013753,2]
[332063269,1720947054023,-500.0,0.00013753,2]
[332063271,1720947054032,-500.0,0.00013753,2]
[332063273,1720947054041,-151.0,0.00013753,2]
[332063275,1720947054051,-500.0,0.00013753,2]
[332063277,1720947054060,-151.0,0.00013753,2]
[332063279,1720947054069,-500.0,0.00013753,2]
[332063281,1720947054078,-500.0,0.00013753,2]
[332063283,1720947054088,-1966.78,0.00013753,2]
[332063285,1720947054098,-500.0,0.00013753,2]
[332063287,1720947054107,-500.0,0.00013753,2]
[332063289,1720947054116,-500.0,0.00013753,2]
[332063291,1720947054126,-1253.29,0.00013753,2]
[332063293,1720947054135,-500.0,0.00013753,2]
[332063295,1720947054145,-1429.45,0.00013753,2]
[332063296,1720947054155,-500.0,0.00013753,2]
[332063298,1720947054163,-1188.98,0.00013753,2]
[332063300,1720947054173,-668.44,0.00013753,2]
[332063302,1720947054183,-199.69986725,0.00013753,2]
[332063304,1720947054193,-500.0,0.00013753,2]
[332063306,1720947054203,-500.0,0.00013753,2]
[332063308,1720947054213,-500.0,0.00013753,2]
[332063310,1720947054222,-1262.84,0.00013753,2]
[332063312,1720947054232,-870.18,0.00013753,2]
[332063314,1720947054242,-500.0,0.00013753,2]
[332063316,1720947054254,-500.0,0.00013753,2]
[332063318,1720947054265,-700.32,0.00013753,2]
[332063320,1720947054276,-855.09,0.00013753,2]
[332063322,1720947054287,-500.0,0.00013753,2]
[332063324,1720947054297,-500.0,0.00013753,2]
[332063326,1720947054309,-500.0,0.00013753,2]
[332063328,1720947054320,-1243.55,0.00013753,2]
[332063331,1720947054330,-739.83,0.00013753,2]
[332063332,1720947054340,-1077.21,0.00013753,2]
[332063333,1720947054351,-792.72,0.00013753,2]
[332063334,1720947054362,-500.0,0.00013753,2]
[332063335,1720947054372,-739.16,0.00013753,2]
[332063336,1720947054383,-500.0,0.00013753,2]
[332063337,1720947054393,-899.11,0.00013753,2]
[332063339,1720947054406,-500.0,0.00013753,2]
[332063341,1720947054416,-500.0,0.00013753,2]
[332063343,1720947054426,-500.0,0.00013753,2]
[332063345,1720947054437,-1090.12,0.00013753,2]
[332063347,1720947054447,-1590.65,0.00013753,2]
[332063348,1720947054458,-447.14338989,0.00013753,2]
[332063349,1720947054468,-1739.03,0.00013753,2]
[332063350,1720947054483,-500.0,0.00013753,2]
[332063351,1720947054492,-500.0,0.00013753,2]
[332063352,1720947054502,-500.0,0.00013753,2]
[332063354,1720947054512,-151.0,0.00013753,2]
[332063355,1720947054522,-151.0,0.00013753,2]
[332063356,1720947054531,-851.62,0.00013753,2]
[332063357,1720947054541,-500.0,0.00013753,2]
[332063358,1720947054551,-500.0,0.00013753,2]
[332063359,1720947054562,-714.08,0.00013753,2]
[332063360,1720947054572,-151.0,0.00013753,2]
[332063361,1720947054582,-579.95,0.00013753,2]
[332063362,1720947054591,-500.0,0.00013753,2]
[332063363,1720947054601,-1879.97,0.00013753,2]
[332063364,1720947054611,-1949.87,0.00013753,2]
[332063365,1720947054620,-500.0,0.00013753,2]
[332063366,1720947054629,-500.0,0.00013753,2]
[332063367,1720947054639,-500.0,0.00013753,2]
[332063368,1720947054648,-954.45,0.00013753,2]
[332063369,1720947054658,-500.0,0.00013753,2]
[332063370,1720947054667,-682.65,0.00013753,2]
[332063371,1720947054676,-500.0,0.00013753,2]
[332063372,1720947054686,-500.0,0.00013753,2]
[332063373,1720947054695,-151.0,0.00013753,2]
[332063374,1720947054704,-500.0,0.00013753,2]
[332063375,1720947054713,-500.0,0.00013753,2]
[332063376,1720947054723,-1125.26,0.00013753,2]
[332063377,1720947054732,-913.57,0.00013753,2]
[332063378,1720947054741,-500.0,0.00013753,2]
[332063379,1720947054766,-633.08,0.00013753,2]
[332063380,1720947054775,-500.0,0.00013753,2]
[332063381,1720947054784,-500.0,0.00013753,2]
[332063382,1720947054793,-726.18,0.00013753,2]
[332063383,1720947054802,-500.0,0.00013753,2]
[332063384,1720947054811,-500.0,0.00013753,2]
[332063385,1720947054820,-500.0,0.00013753,2]
[332063386,1720947054830,-500.0,0.00013753,2]
[332063387,1720947054839,-153.5829,0.00013753,2]
[332063388,1720947054848,-1314.89,0.00013753,2]
[332063389,1720947054859,-500.0,0.00013753,2]
[332063390,1720947054868,-1207.8,0.00013753,2]
[332063391,1720947054877,-649.26,0.00013753,2]
[332063392,1720947054887,-500.0,0.00013753,2]
[332063393,1720947054896,-500.0,0.00013753,2]
[332063394,1720947054905,-500.0,0.00013753,2]
[332063395,1720947054915,-606.84,0.00013753,2]
[332063396,1720947054924,-500.0,0.00013753,2]
[332063397,1720947054934,-1267.24,0.00013753,2]
[332063398,1720947054943,-2056.68,0.00013753,2]
[332063399,1720947054953,-9285.04,0.00013753,2]
[332063400,1720947054963,-952.82,0.00013753,2]
[332063401,1720947054972,-500.0,0.00013753,2]
[332063402,1720947054982,-689.47,0.00013753,2]
[332063403,1720947054991,-500.0,0.00013753,2]
[332063404,1720947055001,-735.83,0.00013753,2]
[332063405,1720947055010,-500.0,0.00013753,2]
[332063406,1720947055020,-1127.41,0.00013753,2]
[332063407,1720947055031,-1355.67,0.00013753,2]
[332063408,1720947055040,-1330.22,0.00013753,2]
[332063409,1720947055049,-500.0,0.00013753,2]
[332063410,1720947055058,-151.0,0.00013753,2]
[332063411,1720947055067,-500.0,0.00013753,2]
[332063412,1720947055078,-934.95,0.00013753,2]
[332063413,1720947055092,-500.0,0.00013753,2]
[332063414,1720947055107,-284.64,0.00013753,2]
[332063415,1720947055121,-971.35,0.00013753,2]
[332063416,1720947055131,-1695.79,0.00013753,2]
[332063417,1720947055146,-500.0,0.00013753,2]
[332063418,1720947055159,-1144.44,0.00013753,2]
[332063419,1720947055173,-500.0,0.00013753,2]
[332063420,1720947055187,-500.0,0.00013753,2]
[332063421,1720947055200,-574.06,0.00013753,2]
[332063422,1720947055215,-445.84,0.00013753,2]
[332063423,1720947055231,-500.0,0.00013753,2]
[332063424,1720947055247,-500.0,0.00013753,2]
[332063425,1720947055260,-500.0,0.00013753,2]
[332063426,1720947055276,-736.42,0.00013753,2]
[332063427,1720947055291,-500.0,0.00013753,2]
[332063428,1720947055304,-500.0,0.00013753,2]
[332063429,1720947055320,-1114.59,0.00013753,2]
[332063430,1720947055332,-733.42,0.00013753,2]
[332063431,1720947055345,-500.0,0.00013753,2]
[332063432,1720947055357,-508.65,0.00013753,2]
[332063433,1720947055371,-1596.48,0.00013753,2]
[332063434,1720947055386,-3258.84,0.00013753,2]
[332063435,1720947055400,-500.0,0.00013753,2]
[332063436,1720947055415,-500.0,0.00013753,2]
[332063437,1720947055430,-883.17,0.00013753,2]
[332063438,1720947055443,-1701.98,0.00013753,2]
[332063439,1720947055454,-700.79,0.00013753,2]
[332063440,1720947055465,-500.0,0.00013753,2]
[332063441,1720947055479,-500.0,0.00013753,2]
[332063442,1720947055495,-500.0,0.00013753,2]
[332063443,1720947055510,-500.0,0.00013753,2]
[332063444,1720947055523,-442.62,0.00013753,2]
[332063445,1720947055534,-683.32,0.00013753,2]
[332063446,1720947055548,-500.0,0.00013753,2]
[332063447,1720947055565,-1471.09,0.00013753,2]
[332063448,1720947055579,-500.0,0.00013753,2]
[332063449,1720947055590,-500.0,0.00013753,2]
[332063450,1720947055602,-500.0,0.00013753,2]
[332063451,1720947055615,-4796.73,0.00013753,2]
[332063452,1720947055628,-672.82,0.00013753,2]
[332063453,1720947055642,-500.0,0.00013753,2]
[332063454,1720947055656,-931.53,0.00013753,2]
[332063455,1720947055671,-970.6,0.00013753,2]
[332063456,1720947055685,-1665.99,0.00013753,2]
[332063457,1720947055700,-500.0,0.00013753,2]
[332063458,1720947055713,-2213.79,0.00013753,2]
[332063459,1720947055725,-500.0,0.00013753,2]
[332063460,1720947055738,-500.0,0.00013753,2]
[332063461,1720947055753,-500.0,0.00013753,2]
[332063462,1720947055766,-2663.81,0.00013753,2]
[332063463,1720947055778,-500.0,0.00013753,2]
[332063464,1720947055792,-1949.1,0.00013753,2]
[332063465,1720947055806,-151.0,0.00013753,2]
[332063466,1720947055821,-500.0,0.00013753,2]
[332063467,1720947055834,-662.37,0.00013753,2]
[332063468,1720947055847,-715.21,0.00013753,2]
[332063469,1720947055860,-1012.47,0.00013753,2]
[332063470,1720947055873,-804.22,0.00013753,2]
[332063471,1720947055887,-854.0,0.00013753,2]
[332063472,1720947055900,-539.7,0.00013753,2]
[332063473,1720947055912,-500.0,0.00013753,2]
[332063474,1720947055925,-361.91,0.00013753,2]
[332063475,1720947055937,-3498.59,0.00013753,2]
[332063476,1720947055950,-500.0,0.00013753,2]
[332063477,1720947055963,-2309.41,0.00013753,2]
[332063478,1720947055975,-154.78,0.00013753,2]
[332063479,1720947055987,-500.0,0.00013753,2]
[332063480,1720947056000,-1322.17,0.00013753,2]
[332063481,1720947056013,-500.0,0.00013753,2]
[332063482,1720947056025,-500.0,0.00013753,2]
[332063483,1720947056037,-969.16,0.00013753,2]
[332063484,1720947056049,-500.0,0.00013753,2]
[332063485,1720947056062,-500.0,0.00013753,2]
[332063486,1720947056075,-500.0,0.00013753,2]
[332063487,1720947056088,-500.0,0.00013753,2]
[332063488,1720947056100,-505.71,0.00013753,2]
[332063489,1720947056112,-500.0,0.00013753,2]
[332063490,1720947056124,-1122.06,0.00013753,2]
[332063491,1720947056136,-500.0,0.00013753,2]
[332063492,1720947056148,-500.0,0.00013753,2]
[332063493,1720947056159,-3769.96,0.00013753,2]
[332063494,1720947056171,-1179.1,0.00013753,2]
[332063495,1720947056183,-500.0,0.00013753,2]
[332063496,1720947056195,-500.0,0.00013753,2]
[332063497,1720947056207,-500.0,0.00013753,2]
[332063498,1720947056219,-500.0,0.00013753,2]
[332063499,1720947056231,-1261.08,0.00013753,2]
[332063500,1720947056243,-359.97845897,0.00013753,2]
[332063501,1720947056255,-275.66,0.00013753,2]
[332063502,1720947056272,-892.2,0.00013753,2]
[332063503,1720947056284,-500.0,0.00013753,2]
[332063504,1720947056295,-535.66,0.00013753,2]
[332063505,1720947056307,-500.0,0.00013753,2]
[332063506,1720947056318,-500.0,0.00013753,2]
[332063507,1720947056330,-500.0,0.00013753,2]
[332063508,1720947056342,-554.00470269,0.00013753,2]
[332063509,1720947056354,-613.04,0.00013753,2]
[332063510,1720947056366,-500.0,0.00013753,2]
[332063511,1720947056378,-1092.14,0.00013753,2]
[332063512,1720947056390,-500.0,0.00013753,2]
[332063513,1720947056403,-500.0,0.00013753,2]
[332063514,1720947056415,-673.86,0.00013753,2]
[332063515,1720947056428,-1595.8,0.00013753,2]
[332063516,1720947056439,-260.2788277,0.00013753,2]
[332063517,1720947056451,-500.0,0.00013753,2]
[332063518,1720947056463,-500.0,0.00013753,2]
[332063519,1720947056479,-1055.17,0.00013753,2]
[332063520,1720947056491,-500.0,0.00013753,2]
[332063521,1720947056503,-500.0,0.00013753,2]
[332063522,1720947056516,-702.8,0.00013753,2]
[332063523,1720947056527,-151.0,0.00013753,2]
[332063524,1720947056539,-500.0,0.00013753,2]
[332063525,1720947056552,-853.51,0.00013753,2]
[332063526,1720947056565,-500.0,0.00013753,2]
[332063527,1720947056577,-161.565756,0.00013753,2]
[332063528,1720947056590,-500.0,0.00013753,2]
[332063529,1720947056602,-935.92,0.00013753,2]
[332063530,1720947056614,-5987.23,0.00013753,2]
[332063531,1720947056627,-500.0,0.00013753,2]
[332063532,1720947056639,-2156.22,0.00013753,2]
[332063533,1720947056650,-500.0,0.00013753,2]
[332063534,1720947056662,-1679.1,0.00013753,2]
[332063535,1720947056674,-161.565756,0.00013753,2]
[332063536,1720947056687,-8434.82,0.00013753,2]
[332063537,1720947056699,-851.76,0.00013753,2]
[332063538,1720947056711,-1079.25,0.00013753,2]
[332063539,1720947056723,-1281.65,0.00013753,2]
[332063540,1720947056735,-708.04,0.00013753,2]
[332063541,1720947056748,-500.0,0.00013753,2]
[332063542,1720947056761,-679.39,0.00013753,2]
[332063543,1720947056773,-500.0,0.00013753,2]
[332063544,1720947056785,-911.76,0.00013753,2]
[332063545,1720947056797,-1619.47,0.00013753,2]
[332063546,1720947056808,-810.45,0.00013753,2]
[332063547,1720947056820,-500.0,0.00013753,2]
[332063548,1720947056832,-500.0,0.00013753,2]
[332063549,1720947056844,-500.0,0.00013753,2]
[332063550,1720947056856,-500.0,0.00013753,2]
[332063551,1720947056867,-562.3,0.00013753,2]
[332063552,1720947056878,-670.51,0.00013753,2]
[332063553,1720947056890,-500.0,0.00013753,2]
[332063554,1720947056903,-500.0,0.00013753,2]
[332063555,1720947056915,-500.0,0.00013753,2]
[332063556,1720947056927,-151.0,0.00013753,2]
[332063557,1720947056939,-1261.4158136,0.0001378,2]
[332063558,1720947056950,-282.0,0.00013781,2]
[332063559,1720947056963,-500.0,0.00013782,2]
[332063560,1720947056975,-200.0,0.00013782,2]
[332063561,1720947056987,-151.0,0.0001379,2]
[332063562,1720947057000,-151.0,0.0001379,2]
[332063563,1720947057011,-151.0,0.0001379,2]
[332063564,1720947057023,-151.0,0.0001379,2]
[332063565,1720947057035,-151.0,0.0001379,2]
[332063566,1720947057046,-151.0,0.0001379,2]
[332063567,1720947057058,-151.0,0.0001379,2]
[332063568,1720947057069,-151.0,0.0001379,2]
[332063569,1720947057080,-151.0,0.0001379,2]
[332063570,1720947057093,-151.0,0.0001379,2]
[332063571,1720947057104,-151.0,0.0001379,2]
[332063572,1720947057115,-151.0,0.0001379,2]
[332063573,1720947057126,-151.0,0.0001379,2]
[332063574,1720947057138,-151.0,0.0001379,2]
[332063575,1720947057149,-151.0,0.0001379,2]
[332063576,1720947057160,-151.0,0.0001379,2]
[332063577,1720947057173,-151.0,0.0001379,2]
[332063578,1720947057184,-151.0,0.0001379,2]
[332063579,1720947057196,-151.0,0.0001379,2]
[332063580,1720947057207,-151.475828,0.0001379,2]
[332063581,1720947057219,-151.0,0.0001379,2]
[332063582,1720947057231,-151.0,0.0001379,2]
[332063583,1720947057245,-151.0,0.0001379,2]
[332063584,1720947057256,-151.0,0.0001379,2]
[332063585,1720947057267,-151.0,0.0001379,2]
[332063586,1720947057278,-151.0,0.0001379,2]
[332063587,1720947057289,-151.0,0.0001379,2]
[332063588,1720947057300,-151.0,0.0001379,2]
[332063589,1720947057310,-151.0,0.0001379,2]
[332063590,1720947057322,-246.154884,0.0001379,2]
[332063591,1720947057333,-244.186025,0.0001379,2]
[332063592,1720947057344,-244.186025,0.0001379,2]
[332063593,1720947057356,-151.0,0.0001379,2]
[332063594,1720947057368,-151.0,0.0001379,2]
[332063595,1720947057380,-151.0,0.0001379,2]
[332063596,1720947057391,-247.964503,0.0001379,2]
[332063597,1720947057405,-151.0,0.0001379,2]
[332063598,1720947057416,-151.0,0.0001379,2]
[332063599,1720947057428,-297.936491,0.0001379,2]
[332063600,1720947057439,-297.936491,0.0001379,2]
[332063601,1720947057450,-151.0,0.0001379,2]
[332063602,1720947057461,-355.629917,0.0001379,2]
[332063603,1720947057473,-355.629917,0.0001379,2]
[332063604,1720947057487,-151.0,0.0001379,2]
[332063605,1720947057501,-151.0,0.0001379,2]
[332063606,1720947057513,-151.0,0.0001379,2]
[332063607,1720947057525,-151.0,0.0001379,2]
[332063608,1720947057539,-151.0,0.0001379,2]
[332063609,1720947057550,-151.0,0.0001379,2]
[332063610,1720947057563,-200.463705,0.0001379,2]
[332063611,1720947057574,-200.463705,0.0001379,2]
[332063612,1720947057585,-151.0,0.0001379,2]
[332063613,1720947057596,-294.143051,0.0001379,2]
[332063614,1720947057608,-151.0,0.0001379,2]
[332063615,1720947057620,-151.0,0.0001379,2]
[332063616,1720947057631,-151.0,0.0001379,2]
[332063617,1720947057643,-151.0,0.0001379,2]
[332063618,1720947057655,-151.0,0.0001379,2]
[332063619,1720947057667,-151.0,0.0001379,2]
[332063620,1720947057678,-161.565756,0.0001379,2]
[332063621,1720947057690,-161.565756,0.0001379,2]
[332063622,1720947057702,-177.52690118,0.00013799,2]
[332063623,1720947057714,-151.0,0.000138,2]
[332063624,1720947057726,-151.0,0.000138,2]
[332063625,1720947057737,-151.0,0.000138,2]
[332063626,1720947057750,-210.184202,0.000138,2]
[332063627,1720947057762,-151.0,0.000138,2]
[332063628,1720947057773,-151.0,0.000138,2]
[332063629,1720947057784,-151.0,0.000138,2]
[332063630,1720947057795,-151.0,0.000138,2]
[332063631,1720947057807,-151.0,0.000138,2]
[332063632,1720947057817,-151.0,0.000138,2]
[332063633,1720947057829,-194.394468,0.000138,2]
[332063634,1720947057840,-244.186025,0.000138,2]
[332063635,1720947057851,-244.186025,0.000138,2]
[332063636,1720947057863,-151.0,0.000138,2]
[332063637,1720947057875,-151.0,0.000138,2]
[332063638,1720947057888,-151.0,0.000138,2]
[332063639,1720947057900,-47929.60891921,0.000138,2]
[332063640,1720947058903,-702.12138426,0.000138,2]
[332063641,1720947058918,-225904.92792453,0.000138,2]
[332063642,1720947058928,-151.0,0.000138,2]
[332063643,1720947058937,-161.565756,0.000138,2]
[332063644,1720947058947,-161.565756,0.000138,2]
[332063645,1720947058957,-151.0,0.000138,2]
[332063646,1720947058968,-334.57288594,0.00013804,2]
[332063647,1720947058978,-500.0,0.00013808,2]
[332063648,1720947058988,-500.0,0.00013808,2]
[332063649,1720947059000,-993.31,0.00013808,2]
[332063650,1720947059010,-151.0,0.00013808,2]
[332063651,1720947059019,-151.0,0.00013808,2]
[332063652,1720947059029,-500.0,0.00013808,2]
[332063653,1720947059038,-151.0,0.00013808,2]
[332063654,1720947059048,-151.0,0.00013808,2]
[332063655,1720947059057,-500.0,0.00013808,2]
[332063656,1720947059067,-500.0,0.00013808,2]
[332063657,1720947059077,-500.0,0.00013808,2]
[332063658,1720947059086,-606.07,0.00013808,2]
[332063659,1720947059095,-500.0,0.00013808,2]
[332063660,1720947059105,-886.23,0.00013808,2]
[332063661,1720947059114,-603.6,0.00013808,2]
[332063662,1720947059124,-151.0,0.00013808,2]
[332063663,1720947059133,-500.0,0.00013808,2]
[332063664,1720947059143,-500.0,0.00013808,2]
[332063665,1720947059152,-151.0,0.00013808,2]
[332063666,1720947059162,-500.0,0.00013808,2]
[332063667,1720947059172,-500.0,0.00013808,2]
[332063668,1720947059182,-151.0,0.00013808,2]
[332063669,1720947059192,-500.0,0.00013808,2]
[332063670,1720947059201,-500.0,0.00013808,2]
[332063671,1720947059211,-616.45,0.00013808,2]
[332063672,1720947059221,-862.26,0.00013808,2]
[332063673,1720947059230,-500.0,0.00013808,2]
[332063674,1720947059239,-500.0,0.00013808,2]
[332063675,1720947059250,-500.0,0.00013808,2]
[332063676,1720947059259,-571.77,0.00013808,2]
[332063677,1720947059269,-606.14807106,0.00013808,2]
[332063678,1720947059279,-500.0,0.00013808,2]
[332063679,1720947059288,-151.0,0.00013808,2]
[332063680,1720947059298,-500.0,0.00013808,2]
[332063681,1720947059307,-500.0,0.00013808,2]
[332063682,1720947059318,-500.0,0.00013808,2]
[332063683,1720947059328,-500.0,0.00013808,2]
[332063684,1720947059338,-500.0,0.00013808,2]
[332063685,1720947059347,-772.22,0.00013808,2]
[332063686,1720947059368,-500.0,0.00013808,2]
[332063687,1720947059379,-500.0,0.00013808,2]
[332063688,1720947059388,-500.0,0.00013808,2]
[332063689,1720947059397,-533.44,0.00013808,2]
[332063690,1720947059408,-500.0,0.00013808,2]
[332063691,1720947059418,-500.0,0.00013808,2]
[332063692,1720947059428,-527.72,0.00013808,2]
[332063693,1720947059438,-500.0,0.00013808,2]
[332063694,1720947059447,-849.41,0.00013808,2]
[332063695,1720947059457,-535.95,0.00013808,2]
[332063696,1720947059467,-500.0,0.00013808,2]
[332063697,1720947059477,-151.0,0.00013808,2]
[332063698,1720947059490,-500.0,0.00013808,2]
[332063699,1720947059500,-508.66,0.00013808,2]
[332063700,1720947059509,-220.513943,0.00013808,2]
[332063701,1720947059519,-151.0,0.00013808,2]
[332063702,1720947059529,-530.35,0.00013808,2]
[332063703,1720947059539,-396.74278894,0.00013808,2]
[332063704,1720947059550,-500.0,0.00013808,2]
[332063705,1720947059561,-857.43,0.00013808,2]
[332063706,1720947059570,-500.0,0.00013808,2]
[332063707,1720947059579,-500.0,0.00013808,2]
[332063708,1720947059589,-565.96,0.00013808,2]
[332063709,1720947059599,-500.0,0.00013808,2]
[332063710,1720947059609,-513.28,0.00013808,2]
[332063711,1720947059618,-500.0,0.00013808,2]
[332063712,1720947059628,-500.0,0.00013808,2]
[332063713,1720947059638,-500.0,0.00013808,2]
[332063714,1720947059647,-647.73,0.00013808,2]
[332063715,1720947059657,-581.66,0.00013808,2]
[332063716,1720947059667,-500.0,0.00013808,2]
[332063717,1720947059676,-500.0,0.00013808,2]
[332063718,1720947059685,-522.48,0.00013808,2]
[332063719,1720947059695,-500.0,0.00013808,2]
[332063720,1720947059704,-539.12782924,0.00013808,2]
[332063721,1720947059713,-500.0,0.00013808,2]
[332063722,1720947059722,-500.0,0.00013808,2]
[332063723,1720947059732,-500.0,0.00013808,2]